[Event "Live Chess"]
[Site "Chess.com"]
[Date "2023.05.20"]
[Round "-"]
[White "wadsy27"]
[Black "Supertromp"]
[Result "1-0"]
[WhiteElo "2588"]
[BlackElo "2163"]
[TimeControl "300"]
[EndTime "9:51:56 PDT"]
[Termination "wadsy27 won by resignation"]

1. d4 {[%clk 0:04:57.8]} 1... Nf6 {[%clk 0:04:58.9]} 2. Bf4 {[%clk 0:04:57]}
2... g6 {[%clk 0:04:58]} 3. e3 {[%clk 0:04:56.3]} 3... Bg7 {[%clk 0:04:57.2]} 4.
Nf3 {[%clk 0:04:54.6]} 4... O-O {[%clk 0:04:56.5]} 5. Be2 {[%clk 0:04:52.1]}
5... d6 {[%clk 0:04:55.5]} 6. O-O {[%clk 0:04:49.9]} 6... b6 {[%clk 0:04:53.4]}
7. h3 {[%clk 0:04:48.5]} 7... Bb7 {[%clk 0:04:52.3]} 8. c4 {[%clk 0:04:47.5]}
8... Nbd7 {[%clk 0:04:51]} 9. Nc3 {[%clk 0:04:46.6]} 9... c5 {[%clk 0:04:35.8]}
10. d5 {[%clk 0:04:38.2]} 10... a6 {[%clk 0:04:22.8]} 11. Bh2 {[%clk 0:04:32.6]}
11... Ne8 {[%clk 0:04:09.9]} 12. Rc1 {[%clk 0:04:27.8]} 12... Nc7 {[%clk
0:04:04.5]} 13. a4 {[%clk 0:04:21]} 13... f5 {[%clk 0:03:56.9]} 14. e4 {[%clk
0:04:06.4]} 14... fxe4 {[%clk 0:03:21.7]} 15. Nxe4 {[%clk 0:04:00.1]} 15... Nf6
{[%clk 0:03:21]} 16. Bd3 {[%clk 0:03:45.2]} 16... Bc8 {[%clk 0:03:15.6]} 17. Qc2
{[%clk 0:03:36.4]} 17... Nh5 {[%clk 0:03:01]} 18. Neg5 {[%clk 0:03:20.5]} 18...
Qe8 {[%clk 0:02:53]} 19. Rce1 {[%clk 0:03:06.7]} 19... Nf4 {[%clk 0:02:32.5]}
20. Bxf4 {[%clk 0:02:50.3]} 20... Rxf4 {[%clk 0:02:32.4]} 21. Re3 {[%clk
0:02:40.9]} 21... Bf5 {[%clk 0:02:02.5]} 22. Rfe1 {[%clk 0:02:30.7]} 22... Bxd3
{[%clk 0:01:35.7]} 23. Qxd3 {[%clk 0:02:29]} 23... Bf6 {[%clk 0:01:34.5]} 24.
Ne6 {[%clk 0:02:15.8]} 24... Nxe6 {[%clk 0:01:32.2]} 25. Rxe6 {[%clk 0:02:15.7]}
25... Qf7 {[%clk 0:01:28.9]} 26. b3 {[%clk 0:02:08.7]} 26... Rf8 {[%clk
0:01:26.9]} 27. R1e4 {[%clk 0:02:00.4]} 27... Rxe4 {[%clk 0:01:25.6]} 28. Qxe4
{[%clk 0:02:00.2]} 28... Kg7 {[%clk 0:01:22.5]} 29. h4 {[%clk 0:01:48.7]} 29...
Bxh4 {[%clk 0:01:15.5]} 30. Nxh4 {[%clk 0:01:44.9]} 30... Qxf2+ {[%clk
0:01:13.8]} 31. Kh2 {[%clk 0:01:43.4]} 31... Rf4 {[%clk 0:01:09.8]} 32. Rxe7+
{[%clk 0:01:39.1]} 32... Kh6 {[%clk 0:01:08.3]} 33. Rxh7+ {[%clk 0:00:58]} 33...
Kxh7 {[%clk 0:01:05.3]} 34. Qxg6+ {[%clk 0:00:57.6]} 34... Kh8 {[%clk
0:01:04.3]} 35. Qh6+ {[%clk 0:00:57.2]} 35... Kg8 {[%clk 0:01:03.4]} 36. Ng6
{[%clk 0:00:56.1]} 36... Rf3 {[%clk 0:00:25.4]} 37. Ne7+ {[%clk 0:00:48.9]}
37... Kf7 {[%clk 0:00:23.5]} 38. Qh5+ {[%clk 0:00:47.2]} 38... Kxe7 {[%clk
0:00:21.4]} 39. Qxf3 {[%clk 0:00:46.1]} 39... Qh4+ {[%clk 0:00:19.5]} 40. Qh3
{[%clk 0:00:45.1]} 40... Qf4+ {[%clk 0:00:18.3]} 41. Qg3 {[%clk 0:00:42.9]}
41... Qh6+ {[%clk 0:00:17.5]} 42. Kg1 {[%clk 0:00:35.7]} 42... Qc1+ {[%clk
0:00:16.6]} 43. Kf2 {[%clk 0:00:34.9]} 43... Qc2+ {[%clk 0:00:16.1]} 44. Kf1
{[%clk 0:00:34.3]} 44... Qc1+ {[%clk 0:00:15.4]} 45. Qe1+ {[%clk 0:00:33.6]}
45... Qxe1+ {[%clk 0:00:12.9]} 46. Kxe1 {[%clk 0:00:33.5]} 46... Kf6 {[%clk
0:00:12.5]} 47. Kf2 {[%clk 0:00:32.9]} 47... Kf5 {[%clk 0:00:12.4]} 48. Kf3
{[%clk 0:00:32.3]} 48... a5 {[%clk 0:00:11.4]} 49. g4+ {[%clk 0:00:31.3]} 49...
Kg5 {[%clk 0:00:11.3]} 50. Kg3 {[%clk 0:00:30.9]} 50... Kg6 {[%clk 0:00:10.7]}
51. Kf4 {[%clk 0:00:30.6]} 51... Kh6 {[%clk 0:00:10.6]} 52. g5+ {[%clk
0:00:30.4]} 52... Kg6 {[%clk 0:00:10.5]} 53. Kg4 {[%clk 0:00:30.1]} 53... Kg7
{[%clk 0:00:09.8]} 54. Kf5 {[%clk 0:00:30]} 54... Kf7 {[%clk 0:00:09.7]} 55. g6+
{[%clk 0:00:29.3]} 55... Kg7 {[%clk 0:00:09.4]} 56. Ke6 {[%clk 0:00:29.1]} 56...
Kxg6 {[%clk 0:00:09.3]} 57. Kxd6 {[%clk 0:00:28.8]} 57... b5 {[%clk 0:00:08.8]}
58. Kc7 {[%clk 0:00:28.2]} 58... bxa4 {[%clk 0:00:08.7]} 1-0

[Event "Live Chess"]
[Site "Chess.com"]
[Date "2023.05.20"]
[Round "-"]
[White "JamesWallman"]
[Black "alexlines8"]
[Result "0-1"]
[WhiteElo "774"]
[BlackElo "1255"]
[TimeControl "300"]
[EndTime "9:51:56 PDT"]
[Termination "alexlines8 won by checkmate"]

1. e3 {[%clk 0:04:57.4]} 1... e5 {[%clk 0:04:57.6]} 2. d3 {[%clk 0:04:53.7]}
2... d5 {[%clk 0:04:56.1]} 3. Nf3 {[%clk 0:04:50.8]} 3... Nc6 {[%clk 0:04:52.4]}
4. Nc3 {[%clk 0:04:48.9]} 4... Nf6 {[%clk 0:04:48.5]} 5. Be2 {[%clk 0:04:44.6]}
5... Bb4 {[%clk 0:04:41.4]} 6. Bd2 {[%clk 0:04:42.5]} 6... Be6 {[%clk
0:04:37.8]} 7. O-O {[%clk 0:04:39.4]} 7... O-O {[%clk 0:04:34.1]} 8. a3 {[%clk
0:04:32.5]} 8... Bd6 {[%clk 0:04:30.7]} 9. h3 {[%clk 0:04:28.2]} 9... Qd7 {[%clk
0:04:24.5]} 10. Nh2 {[%clk 0:04:18.2]} 10... e4 {[%clk 0:04:17.3]} 11. d4 {[%clk
0:04:13.3]} 11... Bxh3 {[%clk 0:04:05.3]} 12. gxh3 {[%clk 0:04:08.4]} 12... Qxh3
{[%clk 0:04:05.2]} 13. Kh1 {[%clk 0:03:55.9]} 13... Qxh2# {[%clk 0:04:02.8]} 0-1

[Event "Live Chess"]
[Site "Chess.com"]
[Date "2023.05.20"]
[Round "-"]
[White "Prijmak"]
[Black "apl_trainer"]
[Result "0-1"]
[WhiteElo "984"]
[BlackElo "1569"]
[TimeControl "300"]
[EndTime "9:51:57 PDT"]
[Termination "apl_trainer won by resignation"]

1. e4 {[%clk 0:04:57.6]} 1... e5 {[%clk 0:04:59.9]} 2. f4 {[%clk 0:04:54.3]}
2... exf4 {[%clk 0:04:54.1]} 3. Nf3 {[%clk 0:04:53.1]} 3... d6 {[%clk
0:04:51.2]} 4. Bc4 {[%clk 0:04:51.6]} 4... h6 {[%clk 0:04:48.6]} 5. d4 {[%clk
0:04:48]} 5... g5 {[%clk 0:04:46.3]} 6. O-O {[%clk 0:04:46.5]} 6... Bg7 {[%clk
0:04:44]} 7. c3 {[%clk 0:04:42.9]} 7... Nc6 {[%clk 0:04:40.7]} 8. Qb3 {[%clk
0:04:40.3]} 8... Qe7 {[%clk 0:04:31]} 9. Bd3 {[%clk 0:04:24.5]} 9... Rb8 {[%clk
0:04:13.9]} 10. h3 {[%clk 0:04:12.3]} 10... Be6 {[%clk 0:04:11.9]} 11. c4 {[%clk
0:04:08.3]} 11... Nxd4 {[%clk 0:04:06.8]} 12. Nxd4 {[%clk 0:04:05.8]} 12...
Bxd4+ {[%clk 0:04:05.3]} 13. Kh1 {[%clk 0:04:01.2]} 13... Qf6 {[%clk 0:03:57.7]}
14. Nc3 {[%clk 0:03:56.5]} 14... Ne7 {[%clk 0:03:51.4]} 15. Nd5 {[%clk
0:03:51.9]} 15... Bxd5 {[%clk 0:03:40.8]} 16. cxd5 {[%clk 0:03:48.2]} 16... O-O
{[%clk 0:03:33.4]} 17. Rb1 {[%clk 0:03:46.6]} 17... Ng6 {[%clk 0:03:29.6]} 18.
Bd2 {[%clk 0:03:40.2]} 18... c5 {[%clk 0:03:23.6]} 19. Qc2 {[%clk 0:03:29]}
19... b5 {[%clk 0:03:16.7]} 20. Bc3 {[%clk 0:03:25.6]} 20... b4 {[%clk
0:03:10.5]} 21. Bxd4 {[%clk 0:03:23.6]} 21... Qxd4 {[%clk 0:03:09.1]} 22. Qc4
{[%clk 0:03:16.6]} 22... Qxc4 {[%clk 0:03:06.1]} 23. Bxc4 {[%clk 0:03:14.3]}
23... Ne5 {[%clk 0:03:04.3]} 24. b3 {[%clk 0:03:09.3]} 24... a5 {[%clk
0:03:00.1]} 25. Rf2 {[%clk 0:03:00.5]} 25... a4 {[%clk 0:02:57.4]} 26. Rbf1
{[%clk 0:02:53.9]} 26... Rb7 {[%clk 0:02:50.2]} 27. Ba6 {[%clk 0:02:46]} 27...
Ra7 {[%clk 0:02:43.5]} 28. Bc4 {[%clk 0:02:42.1]} 28... axb3 {[%clk 0:02:39.6]}
29. axb3 {[%clk 0:02:38]} 29... Rfa8 {[%clk 0:02:37.6]} 30. Kh2 {[%clk 0:02:35]}
30... Ra2 {[%clk 0:02:33.7]} 31. Kg1 {[%clk 0:02:17.8]} 31... Kg7 {[%clk
0:02:28.6]} 32. Rxa2 {[%clk 0:02:15.7]} 32... Rxa2 {[%clk 0:02:26.9]} 33. Rf2
{[%clk 0:02:14.7]} 33... Rxf2 {[%clk 0:02:23.3]} 34. Kxf2 {[%clk 0:02:13.4]}
34... Nxc4 {[%clk 0:02:19.8]} 35. bxc4 {[%clk 0:02:11.5]} 35... b3 {[%clk
0:02:17.1]} 0-1

[Event "Live Chess"]
[Site "Chess.com"]
[Date "2023.05.20"]
[Round "-"]
[White "Jeffaroow"]
[Black "jennybobby44"]
[Result "0-1"]
[WhiteElo "451"]
[BlackElo "1858"]
[TimeControl "300"]
[EndTime "9:51:59 PDT"]
[Termination "jennybobby44 won by resignation"]

1. e4 {[%clk 0:04:58.8]} 1... c5 {[%clk 0:04:58]} 2. Nc3 {[%clk 0:04:57]} 2...
Nc6 {[%clk 0:04:56.8]} 3. Nf3 {[%clk 0:04:55.1]} 3... g6 {[%clk 0:04:56]} 4. d4
{[%clk 0:04:53.4]} 4... cxd4 {[%clk 0:04:55.1]} 5. Nxd4 {[%clk 0:04:53.3]} 5...
Bg7 {[%clk 0:04:54.6]} 6. Nxc6 {[%clk 0:04:51.7]} 6... bxc6 {[%clk 0:04:53.6]}
7. Bd2 {[%clk 0:04:48]} 7... d6 {[%clk 0:04:50.6]} 8. Bd3 {[%clk 0:04:45.4]}
8... Nf6 {[%clk 0:04:49.5]} 9. O-O {[%clk 0:04:43.5]} 9... O-O {[%clk
0:04:48.7]} 10. Qf3 {[%clk 0:04:41.6]} 10... Nd7 {[%clk 0:04:44.8]} 11. e5
{[%clk 0:04:37.9]} 11... Nxe5 {[%clk 0:04:39.6]} 12. Qe4 {[%clk 0:04:32.4]}
12... Bf5 {[%clk 0:04:33.6]} 13. Qxc6 {[%clk 0:04:29.2]} 13... Nxc6 {[%clk
0:04:31.7]} 14. Bxf5 {[%clk 0:04:28.9]} 14... gxf5 {[%clk 0:04:30.6]} 15. Nd5
{[%clk 0:04:27.8]} 15... e6 {[%clk 0:04:26.7]} 0-1

[Event "Live Chess"]
[Site "Chess.com"]
[Date "2023.05.20"]
[Round "-"]
[White "ethanredball"]
[Black "Hacker_2009"]
[Result "0-1"]
[WhiteElo "571"]
[BlackElo "1902"]
[TimeControl "300"]
[EndTime "9:52:00 PDT"]
[Termination "Hacker_2009 won by resignation"]

1. d4 {[%clk 0:04:58]} 1... Nf6 {[%clk 0:04:58.1]} 2. Bg5 {[%clk 0:04:55.4]}
2... e6 {[%clk 0:04:57.2]} 3. Bxf6 {[%clk 0:04:53.3]} 3... Qxf6 {[%clk
0:04:55.6]} 4. e4 {[%clk 0:04:49.4]} 4... c6 {[%clk 0:04:49.6]} 5. e5 {[%clk
0:04:46.3]} 5... Qd8 {[%clk 0:04:48.1]} 6. Nf3 {[%clk 0:04:43.3]} 6... d6 {[%clk
0:04:46.9]} 7. exd6 {[%clk 0:04:39.9]} 7... Bxd6 {[%clk 0:04:45.3]} 8. Nc3
{[%clk 0:04:36.7]} 8... O-O {[%clk 0:04:44.9]} 9. Bd3 {[%clk 0:04:34.6]} 9... b6
{[%clk 0:04:44.2]} 10. Qe2 {[%clk 0:04:31]} 10... Bb7 {[%clk 0:04:43.2]} 11. Qe4
{[%clk 0:04:29]} 11... g6 {[%clk 0:04:40.5]} 12. Ng5 {[%clk 0:04:23]} 12... Qxg5
{[%clk 0:04:37.8]} 13. O-O {[%clk 0:04:19.1]} 13... Qe7 {[%clk 0:04:36]} 14. Ne2
{[%clk 0:04:14]} 14... c5 {[%clk 0:04:35.2]} 15. Nf4 {[%clk 0:04:11.6]} 15...
Bxe4 {[%clk 0:04:33.6]} 0-1

[Event "Live Chess"]
[Site "Chess.com"]
[Date "2023.05.20"]
[Round "-"]
[White "CocheseUK"]
[Black "MarkLim1"]
[Result "0-1"]
[WhiteElo "1109"]
[BlackElo "1604"]
[TimeControl "300"]
[EndTime "9:52:03 PDT"]
[Termination "MarkLim1 won by resignation"]

1. d4 {[%clk 0:04:55.9]} 1... Nf6 {[%clk 0:04:58.7]} 2. Nc3 {[%clk 0:04:52.7]}
2... d5 {[%clk 0:04:57.5]} 3. Bf4 {[%clk 0:04:49.5]} 3... e6 {[%clk 0:04:56]} 4.
e3 {[%clk 0:04:45.2]} 4... Bb4 {[%clk 0:04:54.5]} 5. Ne2 {[%clk 0:04:40.8]} 5...
O-O {[%clk 0:04:51.9]} 6. a3 {[%clk 0:04:38.7]} 6... Be7 {[%clk 0:04:50]} 7. Ng3
{[%clk 0:04:35.1]} 7... c5 {[%clk 0:04:49.2]} 8. dxc5 {[%clk 0:04:26.2]} 8...
Bxc5 {[%clk 0:04:47.7]} 9. b4 {[%clk 0:04:21.1]} 9... Be7 {[%clk 0:04:46.5]} 10.
Bd3 {[%clk 0:04:11.2]} 10... Nc6 {[%clk 0:04:45.1]} 11. Nge2 {[%clk 0:04:02.3]}
11... a6 {[%clk 0:04:42.7]} 12. O-O {[%clk 0:03:59.3]} 12... e5 {[%clk
0:04:41.5]} 13. Bg3 {[%clk 0:03:49.5]} 13... e4 {[%clk 0:04:40]} 14. Nf4 {[%clk
0:03:27.7]} 14... exd3 {[%clk 0:04:38.2]} 15. Qxd3 {[%clk 0:03:25.5]} 15... Be6
{[%clk 0:04:32.9]} 16. Rfd1 {[%clk 0:03:15.2]} 16... Rc8 {[%clk 0:04:27.2]} 17.
Ncxd5 {[%clk 0:03:00.8]} 17... Nxd5 {[%clk 0:04:25.4]} 18. Nxd5 {[%clk
0:02:57.6]} 18... Bxd5 {[%clk 0:04:24.4]} 19. Qxd5 {[%clk 0:02:54.8]} 19... Qxd5
{[%clk 0:04:22.1]} 20. Rxd5 {[%clk 0:02:52.6]} 20... Bf6 {[%clk 0:04:21.3]} 21.
Rad1 {[%clk 0:02:49.2]} 21... Ne7 {[%clk 0:04:19.8]} 22. Rd7 {[%clk 0:02:39.2]}
22... Nf5 {[%clk 0:04:18.8]} 23. Rxb7 {[%clk 0:02:34.6]} 23... Nxg3 {[%clk
0:04:13]} 24. hxg3 {[%clk 0:02:30.7]} 24... Rxc2 {[%clk 0:04:12]} 25. Rdd7
{[%clk 0:02:28.4]} 25... Ra2 {[%clk 0:04:08.4]} 0-1

[Event "Live Chess"]
[Site "Chess.com"]
[Date "2023.05.20"]
[Round "-"]
[White "flyingpuffins"]
[Black "chrisbradgate"]
[Result "1-0"]
[WhiteElo "1978"]
[BlackElo "845"]
[TimeControl "300"]
[EndTime "9:52:06 PDT"]
[Termination "flyingpuffins won by checkmate"]

1. d4 {[%clk 0:04:59]} 1... d5 {[%clk 0:04:58.3]} 2. e4 {[%clk 0:04:58.1]} 2...
c6 {[%clk 0:04:55.5]} 3. Nc3 {[%clk 0:04:56.3]} 3... e6 {[%clk 0:04:51.1]} 4. e5
{[%clk 0:04:52.9]} 4... Bb4 {[%clk 0:04:49.5]} 5. f4 {[%clk 0:04:51.3]} 5...
Bxc3+ {[%clk 0:04:47.8]} 6. bxc3 {[%clk 0:04:50.1]} 6... Ne7 {[%clk 0:04:45.3]}
7. Qg4 {[%clk 0:04:47.4]} 7... O-O {[%clk 0:04:43.4]} 8. Nf3 {[%clk 0:04:45.1]}
8... Nd7 {[%clk 0:04:34.2]} 9. Bd3 {[%clk 0:04:43.7]} 9... Ng6 {[%clk
0:04:29.1]} 10. h4 {[%clk 0:04:36.3]} 10... h6 {[%clk 0:04:22.6]} 11. Bxg6
{[%clk 0:04:33]} 11... fxg6 {[%clk 0:04:12.6]} 12. Qxg6 {[%clk 0:04:32.9]} 12...
Qe8 {[%clk 0:04:07.1]} 13. Qg4 {[%clk 0:04:25.6]} 13... h5 {[%clk 0:03:30.8]}
14. Qg5 {[%clk 0:04:23.5]} 14... g6 {[%clk 0:03:22.2]} 15. Bd2 {[%clk
0:04:20.9]} 15... Rf7 {[%clk 0:03:13.1]} 16. O-O-O {[%clk 0:04:19]} 16... Nf8
{[%clk 0:03:06.3]} 17. g4 {[%clk 0:04:17.1]} 17... Nh7 {[%clk 0:03:05.2]} 18.
Qh6 {[%clk 0:04:13.7]} 18... Qf8 {[%clk 0:02:59.3]} 19. Qxg6+ {[%clk 0:04:11.8]}
19... Rg7 {[%clk 0:02:44.2]} 20. Qxh5 {[%clk 0:04:04.6]} 20... Bd7 {[%clk
0:02:32.9]} 21. Ng5 {[%clk 0:04:01.1]} 21... Be8 {[%clk 0:02:26.3]} 22. Qh6
{[%clk 0:03:58.4]} 22... Nxg5 {[%clk 0:02:15.2]} 23. hxg5 {[%clk 0:03:54.8]}
23... Kf7 {[%clk 0:02:08.5]} 24. f5 {[%clk 0:03:50.2]} 24... exf5 {[%clk
0:02:04.7]} 25. gxf5 {[%clk 0:03:49.3]} 25... Ke7 {[%clk 0:01:51.3]} 26. Qd6+
{[%clk 0:03:45.9]} 26... Kf7 {[%clk 0:01:39.4]} 27. g6+ {[%clk 0:03:45.8]} 27...
Kg8 {[%clk 0:01:26.8]} 28. Rh8+ {[%clk 0:03:44.5]} 28... Kxh8 {[%clk 0:01:25.5]}
29. Qxf8+ {[%clk 0:03:43.8]} 29... Rg8 {[%clk 0:01:21.9]} 30. Rh1# {[%clk
0:03:43.7]} 1-0

[Event "Live Chess"]
[Site "Chess.com"]
[Date "2023.05.20"]
[Round "-"]
[White "tuppyglossop"]
[Black "Andysav3"]
[Result "0-1"]
[WhiteElo "1593"]
[BlackElo "1694"]
[TimeControl "300"]
[EndTime "9:52:17 PDT"]
[Termination "Andysav3 won by checkmate"]

1. e4 {[%clk 0:04:57.1]} 1... c5 {[%clk 0:04:57.9]} 2. Nf3 {[%clk 0:04:55.8]}
2... Nc6 {[%clk 0:04:57]} 3. d4 {[%clk 0:04:55.1]} 3... cxd4 {[%clk 0:04:56.2]}
4. Nxd4 {[%clk 0:04:55]} 4... Nf6 {[%clk 0:04:55.2]} 5. Nc3 {[%clk 0:04:53.3]}
5... e5 {[%clk 0:04:54.1]} 6. Ndb5 {[%clk 0:04:52.1]} 6... d6 {[%clk 0:04:53.1]}
7. Bg5 {[%clk 0:04:50.6]} 7... a6 {[%clk 0:04:51.3]} 8. Na3 {[%clk 0:04:48.2]}
8... b5 {[%clk 0:04:47.6]} 9. Nd5 {[%clk 0:04:45.2]} 9... Be6 {[%clk 0:04:37.9]}
10. Bxf6 {[%clk 0:04:27.4]} 10... gxf6 {[%clk 0:04:34.6]} 11. c3 {[%clk
0:04:25.4]} 11... f5 {[%clk 0:04:24.5]} 12. Bd3 {[%clk 0:04:22.1]} 12... Bg7
{[%clk 0:04:22.3]} 13. O-O {[%clk 0:04:10.5]} 13... Kf8 {[%clk 0:04:02.8]} 14.
Nc2 {[%clk 0:04:00.7]} 14... Rc8 {[%clk 0:03:59.1]} 15. Nce3 {[%clk 0:03:44.1]}
15... fxe4 {[%clk 0:03:32.9]} 16. Bxe4 {[%clk 0:03:42.7]} 16... Ne7 {[%clk
0:03:30.2]} 17. Qf3 {[%clk 0:03:23.6]} 17... h5 {[%clk 0:03:19.9]} 18. Nxe7
{[%clk 0:03:06.1]} 18... Qxe7 {[%clk 0:03:17.2]} 19. Bf5 {[%clk 0:02:49.6]}
19... h4 {[%clk 0:03:08.7]} 20. h3 {[%clk 0:02:43.2]} 20... Rc5 {[%clk
0:02:53.3]} 21. Rfd1 {[%clk 0:02:33.2]} 21... Bh6 {[%clk 0:02:21.2]} 22. Bxe6
{[%clk 0:02:21.2]} 22... Qxe6 {[%clk 0:02:18.7]} 23. Ng4 {[%clk 0:02:05.6]}
23... Kg7 {[%clk 0:02:03.1]} 24. Re1 {[%clk 0:01:39.6]} 24... f5 {[%clk
0:01:50.1]} 25. Nxh6 {[%clk 0:01:31.3]} 25... Rxh6 {[%clk 0:01:38]} 26. Qb7+
{[%clk 0:01:29.3]} 26... Kf6 {[%clk 0:01:35.6]} 27. Qxa6 {[%clk 0:01:27.7]}
27... e4 {[%clk 0:01:30]} 28. Rad1 {[%clk 0:01:24.5]} 28... d5 {[%clk 0:01:20]}
29. Qxe6+ {[%clk 0:01:09]} 29... Kxe6 {[%clk 0:01:18.9]} 30. Rd2 {[%clk
0:01:05.2]} 30... Ke5 {[%clk 0:01:14.5]} 31. f3 {[%clk 0:01:00.9]} 31... f4
{[%clk 0:01:06.8]} 32. fxe4 {[%clk 0:00:56.2]} 32... dxe4 {[%clk 0:01:05.5]} 33.
Rd4 {[%clk 0:00:55.1]} 33... e3 {[%clk 0:01:00.6]} 34. a4 {[%clk 0:00:39.8]}
34... Rg6 {[%clk 0:00:51.9]} 35. axb5 {[%clk 0:00:36]} 35... Rxb5 {[%clk
0:00:50.1]} 36. Kf1 {[%clk 0:00:29.3]} 36... Rxb2 {[%clk 0:00:47.7]} 37. Rb4
{[%clk 0:00:24]} 37... Rf2+ {[%clk 0:00:42.5]} 38. Kg1 {[%clk 0:00:22.1]} 38...
Rgxg2+ {[%clk 0:00:40.6]} 39. Kh1 {[%clk 0:00:21.2]} 39... Rh2+ {[%clk
0:00:32.3]} 40. Kg1 {[%clk 0:00:20.2]} 40... Rfg2+ {[%clk 0:00:29]} 41. Kf1
{[%clk 0:00:18.9]} 41... Rg3 {[%clk 0:00:24.9]} 42. Rb5+ {[%clk 0:00:17.1]}
42... Ke4 {[%clk 0:00:23.7]} 43. Rb4+ {[%clk 0:00:15.9]} 43... Kf3 {[%clk
0:00:22.3]} 44. Rd4 {[%clk 0:00:14.2]} 44... Rh1# {[%clk 0:00:19.8]} 0-1

[Event "Live Chess"]
[Site "Chess.com"]
[Date "2023.05.20"]
[Round "-"]
[White "Singapourfeuj"]
[Black "LodeshChess"]
[Result "1-0"]
[WhiteElo "2274"]
[BlackElo "879"]
[TimeControl "300"]
[EndTime "9:52:17 PDT"]
[Termination "Singapourfeuj won by resignation"]

1. d4 {[%clk 0:04:58.6]} 1... Nf6 {[%clk 0:04:58.7]} 2. Nf3 {[%clk 0:04:57.8]}
2... c5 {[%clk 0:04:57]} 3. d5 {[%clk 0:04:56.7]} 3... d6 {[%clk 0:04:54.6]} 4.
Nc3 {[%clk 0:04:56]} 4... e5 {[%clk 0:04:53.8]} 5. e4 {[%clk 0:04:55.1]} 5...
Qa5 {[%clk 0:04:49.6]} 6. Bd3 {[%clk 0:04:53.7]} 6... Bg4 {[%clk 0:04:36.7]} 7.
O-O {[%clk 0:04:52.1]} 7... Nbd7 {[%clk 0:04:29.1]} 8. h3 {[%clk 0:04:50.8]}
8... Bxf3 {[%clk 0:04:27.8]} 9. Qxf3 {[%clk 0:04:49.3]} 9... Be7 {[%clk
0:04:27.4]} 10. g4 {[%clk 0:04:46.1]} 10... h6 {[%clk 0:04:20.5]} 11. Qg3 {[%clk
0:04:41.9]} 11... Qb4 {[%clk 0:04:03.6]} 12. a3 {[%clk 0:04:39.1]} 12... Qd4
{[%clk 0:03:56]} 13. Be3 {[%clk 0:04:37.8]} 13... Nxe4 {[%clk 0:03:48.6]} 14.
Nxe4 {[%clk 0:04:35.3]} 14... Qxb2 {[%clk 0:03:45.5]} 15. Rfb1 {[%clk
0:04:33.8]} 15... Qxa1 {[%clk 0:03:36.2]} 16. Rxa1 {[%clk 0:04:32.8]} 16... Nb6
{[%clk 0:03:33.9]} 17. Rb1 {[%clk 0:04:31.4]} 17... Nxd5 {[%clk 0:03:31.7]} 18.
Bb5+ {[%clk 0:04:30]} 18... Kd8 {[%clk 0:03:25.1]} 19. c4 {[%clk 0:04:28.6]}
19... Nc7 {[%clk 0:03:13.8]} 20. Rd1 {[%clk 0:04:26.7]} 20... a6 {[%clk
0:03:07.5]} 21. Nxd6 {[%clk 0:04:23.2]} 21... Bxd6 {[%clk 0:03:05.6]} 22. Rxd6+
{[%clk 0:04:21.9]} 22... Ke7 {[%clk 0:03:05.2]} 23. Rd7+ {[%clk 0:04:21]} 23...
Ke6 {[%clk 0:03:04.3]} 24. Rxc7 {[%clk 0:04:19.7]} 1-0

[Event "Live Chess"]
[Site "Chess.com"]
[Date "2023.05.20"]
[Round "-"]
[White "Daniel_Gliddon_FA"]
[Black "Driftboard"]
[Result "1-0"]
[WhiteElo "954"]
[BlackElo "717"]
[TimeControl "300"]
[EndTime "9:52:20 PDT"]
[Termination "Daniel_Gliddon_FA won by checkmate"]

1. e4 {[%clk 0:04:55.3]} 1... e5 {[%clk 0:04:58.8]} 2. d4 {[%clk 0:04:54]} 2...
exd4 {[%clk 0:04:53.3]} 3. c3 {[%clk 0:04:52.5]} 3... dxc3 {[%clk 0:04:51.3]} 4.
Bc4 {[%clk 0:04:51.1]} 4... cxb2 {[%clk 0:04:49.3]} 5. Bxb2 {[%clk 0:04:50]}
5... Nc6 {[%clk 0:04:46.7]} 6. Nf3 {[%clk 0:04:45.9]} 6... Nf6 {[%clk
0:04:45.8]} 7. Qb3 {[%clk 0:04:36.2]} 7... Qe7 {[%clk 0:04:34.7]} 8. O-O {[%clk
0:04:33]} 8... d6 {[%clk 0:04:21.1]} 9. Nbd2 {[%clk 0:04:26.6]} 9... Bg4 {[%clk
0:04:17.7]} 10. e5 {[%clk 0:04:23.2]} 10... Nxe5 {[%clk 0:04:11.6]} 11. Nxe5
{[%clk 0:04:18.4]} 11... dxe5 {[%clk 0:04:09.8]} 12. Qxb7 {[%clk 0:04:11.9]}
12... Qd8 {[%clk 0:03:59.1]} 13. Bb5+ {[%clk 0:04:07.2]} 13... Bd7 {[%clk
0:03:43.1]} 14. Bxd7+ {[%clk 0:03:58.2]} 14... Nxd7 {[%clk 0:03:41.6]} 15. Rad1
{[%clk 0:03:54.2]} 15... Nc5 {[%clk 0:03:39.4]} 16. Qc6+ {[%clk 0:03:51.4]}
16... Qd7 {[%clk 0:03:18.3]} 17. Qxa8+ {[%clk 0:03:47.5]} 17... Qd8 {[%clk
0:03:13.7]} 18. Qxd8+ {[%clk 0:03:45.9]} 18... Kxd8 {[%clk 0:03:12.6]} 19. Ne4+
{[%clk 0:03:41]} 19... Nd7 {[%clk 0:03:11.6]} 20. Bxe5 {[%clk 0:03:27.7]} 20...
Kc8 {[%clk 0:02:57.5]} 21. Bxc7 {[%clk 0:03:11.4]} 21... Kxc7 {[%clk 0:02:55.4]}
22. Rc1+ {[%clk 0:03:10.1]} 22... Kd8 {[%clk 0:02:53]} 23. Rfd1 {[%clk
0:03:02.8]} 23... Ba3 {[%clk 0:02:48.2]} 24. Rc3 {[%clk 0:02:56.1]} 24... Bb4
{[%clk 0:02:38.6]} 25. Rcd3 {[%clk 0:02:52.6]} 25... Kc8 {[%clk 0:02:21.6]} 26.
Rxd7 {[%clk 0:02:50.4]} 26... Ba5 {[%clk 0:02:16.4]} 27. Rxf7 {[%clk 0:02:46.7]}
27... Re8 {[%clk 0:02:12.3]} 28. Nd6+ {[%clk 0:02:43.4]} 28... Kd8 {[%clk
0:02:10.5]} 29. Nxe8+ {[%clk 0:02:41.8]} 29... Kxe8 {[%clk 0:02:10.3]} 30. Rxa7
{[%clk 0:02:38.1]} 30... Bb6 {[%clk 0:02:05.1]} 31. Rb7 {[%clk 0:02:30.7]} 31...
Ba5 {[%clk 0:02:02.5]} 32. Rdd7 {[%clk 0:02:22.5]} 32... Bc3 {[%clk 0:01:16.8]}
33. Rdc7 {[%clk 0:02:18.9]} 33... Kd8 {[%clk 0:01:15.5]} 34. Rf7 {[%clk
0:02:16.9]} 34... Kc8 {[%clk 0:01:06.4]} 35. Rbc7+ {[%clk 0:02:13.2]} 35... Kd8
{[%clk 0:01:05.1]} 36. Rxc3 {[%clk 0:02:11.3]} 36... Ke8 {[%clk 0:01:03.2]} 37.
Ra7 {[%clk 0:02:09.8]} 37... Kd8 {[%clk 0:00:55.7]} 38. Rf3 {[%clk 0:02:08]}
38... Ke8 {[%clk 0:00:51.6]} 39. Rb3 {[%clk 0:02:06.2]} 39... Kd8 {[%clk
0:00:49.5]} 40. Rb8# {[%clk 0:02:04]} 1-0